[Event "Late-Titled-Tuesday-Blitz-September-12-2023"]
[Site "Chess.com"]
[Date "2023.09.12"]
[Round "2"]
[White "GMBenjaminBok"]
[Black "BigAl"]
[Result "1-0"]
[WhiteElo "3028"]
[BlackElo "2543"]
[TimeControl "180+1"]
[EndTime "14:16:47 PDT"]
[Termination "GMBenjaminBok won by resignation"]

1. d4 {[%clk 0:03:00.9]} 1... Nf6 {[%clk 0:02:59.8]} 2. c4 {[%clk 0:03:00.8]}
2... g6 {[%clk 0:02:58.7]} 3. g3 {[%clk 0:02:59.9]} 3... Bg7 {[%clk 0:02:59.6]}
4. Bg2 {[%clk 0:03:00]} 4... O-O {[%clk 0:03:00.5]} 5. Nc3 {[%clk 0:02:59.9]}
5... d6 {[%clk 0:03:01.2]} 6. Nf3 {[%clk 0:03:00]} 6... Nbd7 {[%clk 0:03:02]} 7.
O-O {[%clk 0:03:00.1]} 7... e5 {[%clk 0:03:02.5]} 8. e4 {[%clk 0:03:00.4]} 8...
c6 {[%clk 0:03:03]} 9. Be3 {[%clk 0:03:00.1]} 9... Qa5 {[%clk 0:02:38.5]} 10. h3
{[%clk 0:02:58.8]} 10... Nb6 {[%clk 0:02:37.2]} 11. Qd3 {[%clk 0:02:42.7]} 11...
exd4 {[%clk 0:02:34.6]} 12. Nxd4 {[%clk 0:02:43.6]} 12... Nfd7 {[%clk
0:02:27.6]} 13. b3 {[%clk 0:02:40.7]} 13... Ne5 {[%clk 0:02:06.1]} 14. Qc2
{[%clk 0:02:38.2]} 14... Nexc4 {[%clk 0:01:57.1]} 15. bxc4 {[%clk 0:02:38.2]}
15... Nxc4 {[%clk 0:01:57.9]} 16. Rad1 {[%clk 0:02:19.3]} 16... Nxe3 {[%clk
0:01:56.4]} 17. fxe3 {[%clk 0:02:20.2]} 17... Qe5 {[%clk 0:01:51.4]} 18. Qf2
{[%clk 0:02:18.5]} 18... Be6 {[%clk 0:01:39]} 19. a4 {[%clk 0:01:43.8]} 19...
Bc4 {[%clk 0:01:32.7]} 20. Rfe1 {[%clk 0:01:39.1]} 20... Rfe8 {[%clk 0:01:19.1]}
21. Nce2 {[%clk 0:01:30.1]} 21... Qa5 {[%clk 0:01:05.2]} 22. Nf4 {[%clk
0:01:27.3]} 22... Re7 {[%clk 0:00:44.9]} 23. Qd2 {[%clk 0:01:22]} 23... Qg5
{[%clk 0:00:27.2]} 24. Kh2 {[%clk 0:01:19.5]} 24... Rae8 {[%clk 0:00:25.2]} 25.
Nf3 {[%clk 0:01:10.8]} 25... Qc5 {[%clk 0:00:18.5]} 26. Qxd6 {[%clk 0:01:10.8]}
26... Qxd6 {[%clk 0:00:19]} 27. Rxd6 {[%clk 0:01:11.7]} 27... Rxe4 {[%clk
0:00:19.9]} 28. Nd2 {[%clk 0:01:12]} 28... Rxf4 {[%clk 0:00:11.1]} 29. gxf4
{[%clk 0:01:07.9]} 29... Ba6 {[%clk 0:00:11.5]} 30. Ne4 {[%clk 0:01:01.3]} 30...
h6 {[%clk 0:00:10]} 31. Red1 {[%clk 0:00:55.1]} 31... Kh7 {[%clk 0:00:10.1]} 32.
Rd8 {[%clk 0:00:54.7]} 32... Re6 {[%clk 0:00:10.8]} 33. R1d6 {[%clk 0:00:54.6]}
33... Re7 {[%clk 0:00:10.3]} 34. R6d7 {[%clk 0:00:55.2]} 34... Re6 {[%clk
0:00:10.6]} 35. Rxf7 {[%clk 0:00:55.1]} 35... Bd3 {[%clk 0:00:09.1]} 36. Rxd3
{[%clk 0:00:53.8]} 1-0

[Event "Late-Titled-Tuesday-Blitz-September-12-2023"]
[Site "Chess.com"]
[Date "2023.09.12"]
[Round "2"]
[White "Maksimus1998"]
[Black "Firouzja2003"]
[Result "0-1"]
[WhiteElo "2564"]
[BlackElo "3080"]
[TimeControl "180+1"]
[EndTime "14:16:49 PDT"]
[Termination "Firouzja2003 won by resignation"]

1. d4 {[%clk 0:03:00.9]} 1... Nf6 {[%clk 0:02:57.8]} 2. Nf3 {[%clk 0:03:01]}
2... g6 {[%clk 0:02:51.6]} 3. Bg5 {[%clk 0:02:59.4]} 3... Bg7 {[%clk 0:02:52.2]}
4. Nbd2 {[%clk 0:02:58.7]} 4... O-O {[%clk 0:02:52.6]} 5. e4 {[%clk 0:02:57.6]}
5... d5 {[%clk 0:02:52.8]} 6. exd5 {[%clk 0:02:38.9]} 6... Nxd5 {[%clk
0:02:53.7]} 7. Be2 {[%clk 0:02:32.7]} 7... Nc6 {[%clk 0:02:53.4]} 8. c3 {[%clk
0:02:32.1]} 8... h6 {[%clk 0:02:53.5]} 9. Bh4 {[%clk 0:02:31.7]} 9... g5 {[%clk
0:02:51.4]} 10. Bg3 {[%clk 0:02:30.6]} 10... f5 {[%clk 0:02:51.7]} 11. Be5
{[%clk 0:02:10.5]} 11... Nxe5 {[%clk 0:02:51.3]} 12. Nxe5 {[%clk 0:02:11.4]}
12... c5 {[%clk 0:02:51.4]} 13. O-O {[%clk 0:02:01]} 13... cxd4 {[%clk
0:02:50.9]} 14. cxd4 {[%clk 0:02:01.9]} 14... Nf4 {[%clk 0:02:51.4]} 15. Bc4+
{[%clk 0:02:01.3]} 15... Kh7 {[%clk 0:02:51.3]} 16. Nb3 {[%clk 0:01:49.7]} 16...
b5 {[%clk 0:02:35.3]} 17. Be2 {[%clk 0:01:25.2]} 17... Bxe5 {[%clk 0:02:23.5]}
18. dxe5 {[%clk 0:01:23.8]} 18... Bb7 {[%clk 0:02:24.2]} 19. Bf3 {[%clk
0:01:16.7]} 19... Qxd1 {[%clk 0:02:20.2]} 20. Rfxd1 {[%clk 0:01:17.6]} 20...
Bxf3 {[%clk 0:02:20.7]} 21. gxf3 {[%clk 0:01:18.1]} 21... Rfd8 {[%clk
0:02:17.2]} 22. Kf1 {[%clk 0:01:18]} 22... Rac8 {[%clk 0:02:12.4]} 23. Nd4
{[%clk 0:01:14.1]} 23... e6 {[%clk 0:02:07.9]} 24. Nxb5 {[%clk 0:00:43.4]} 24...
Rxd1+ {[%clk 0:02:06.5]} 25. Rxd1 {[%clk 0:00:44.3]} 25... Rc2 {[%clk
0:02:06.8]} 26. Nxa7 {[%clk 0:00:40.1]} 26... Rxb2 {[%clk 0:02:06.5]} 27. a4
{[%clk 0:00:39.8]} 27... Ra2 {[%clk 0:02:04.2]} 28. Nc6 {[%clk 0:00:29.6]} 28...
Rxa4 {[%clk 0:02:01.9]} 29. Ke1 {[%clk 0:00:23.2]} 29... Ra3 {[%clk 0:01:52.2]}
30. Rd6 {[%clk 0:00:16.7]} 30... Ra1+ {[%clk 0:01:44.2]} 31. Kd2 {[%clk
0:00:16.6]} 31... Ra2+ {[%clk 0:01:44.6]} 32. Ke1 {[%clk 0:00:16.6]} 32... Re2+
{[%clk 0:01:44.2]} 33. Kf1 {[%clk 0:00:15.1]} 33... Rb2 {[%clk 0:01:44.9]} 34.
Ke1 {[%clk 0:00:15.2]} 34... Rb1+ {[%clk 0:01:25.1]} 35. Kd2 {[%clk 0:00:15.3]}
35... Rf1 {[%clk 0:01:25.7]} 36. Nd4 {[%clk 0:00:12.2]} 36... Rxf2+ {[%clk
0:01:25.9]} 37. Kc3 {[%clk 0:00:08.3]} 37... Rxh2 {[%clk 0:01:19.4]} 38. Nxe6
{[%clk 0:00:08.5]} 38... Nxe6 {[%clk 0:01:20.3]} 39. Rxe6 {[%clk 0:00:08.9]}
39... g4 {[%clk 0:01:21.2]} 40. fxg4 {[%clk 0:00:09.2]} 40... fxg4 {[%clk
0:01:22.1]} 41. Kd4 {[%clk 0:00:04.2]} 41... Re2 {[%clk 0:01:17.4]} 42. Re7+
{[%clk 0:00:02.9]} 42... Kg6 {[%clk 0:01:17.3]} 43. Re8 {[%clk 0:00:03.2]} 43...
Kf7 {[%clk 0:01:17.9]} 44. Rh8 {[%clk 0:00:03]} 44... g3 {[%clk 0:01:16.9]} 45.
Rxh6 {[%clk 0:00:02.8]} 45... g2 {[%clk 0:01:16.5]} 46. Rf6+ {[%clk 0:00:03]}
46... Kg7 {[%clk 0:01:16.6]} 0-1

[Event "Late-Titled-Tuesday-Blitz-September-12-2023"]
[Site "Chess.com"]
[Date "2023.09.12"]
[Round "2"]
[White "petr577"]
[Black "farzadbfd"]
[Result "0-1"]
[WhiteElo "2327"]
[BlackElo "2696"]
[TimeControl "180+1"]
[EndTime "14:16:54 PDT"]
[Termination "farzadbfd won by resignation"]

1. d4 {[%clk 0:03:00.9]} 1... Nf6 {[%clk 0:02:58.9]} 2. Bg5 {[%clk 0:03:01.5]}
2... d5 {[%clk 0:02:58.6]} 3. e3 {[%clk 0:03:01.3]} 3... c5 {[%clk 0:02:57.8]}
4. Nc3 {[%clk 0:03:00.9]} 4... Bf5 {[%clk 0:02:53.7]} 5. Bxf6 {[%clk 0:02:56.9]}
5... gxf6 {[%clk 0:02:53.8]} 6. Bd3 {[%clk 0:02:56.8]} 6... Bg6 {[%clk
0:02:52.5]} 7. dxc5 {[%clk 0:02:48.3]} 7... e6 {[%clk 0:02:52.5]} 8. Nge2 {[%clk
0:02:48.4]} 8... Bxc5 {[%clk 0:02:50.7]} 9. Nf4 {[%clk 0:02:47.8]} 9... Nc6
{[%clk 0:02:50.7]} 10. Bxg6 {[%clk 0:02:10.2]} 10... hxg6 {[%clk 0:02:45.8]} 11.
Qe2 {[%clk 0:02:10.7]} 11... Bb4 {[%clk 0:02:37.9]} 12. O-O {[%clk 0:02:02.6]}
12... Bxc3 {[%clk 0:02:33.4]} 13. bxc3 {[%clk 0:02:03.5]} 13... Qd6 {[%clk
0:02:22.5]} 14. c4 {[%clk 0:01:20.9]} 14... g5 {[%clk 0:02:15]} 15. Nh3 {[%clk
0:01:20.5]} 15... d4 {[%clk 0:01:57.5]} 16. Rab1 {[%clk 0:01:14]} 16... O-O-O
{[%clk 0:01:45.9]} 17. Rfd1 {[%clk 0:01:08.2]} 17... Qe5 {[%clk 0:01:43.7]} 18.
Rb5 {[%clk 0:01:03.8]} 18... Qe4 {[%clk 0:01:37.9]} 19. Rdb1 {[%clk 0:01:00.9]}
19... dxe3 {[%clk 0:01:34.3]} 20. Rxb7 {[%clk 0:00:50.3]} 20... Rd2 {[%clk
0:01:21.4]} 21. Qxe3 {[%clk 0:00:42.9]} 21... Rhd8 {[%clk 0:00:58]} 22. Kh1
{[%clk 0:00:12.3]} 22... Qxc2 {[%clk 0:00:37]} 23. Qg3 {[%clk 0:00:06.9]} 23...
Rd1+ {[%clk 0:00:35]} 24. Ng1 {[%clk 0:00:07.3]} 24... Rxg1+ {[%clk 0:00:33.2]}
25. Rxg1 {[%clk 0:00:04.2]} 25... Kxb7 {[%clk 0:00:33.6]} 26. h4 {[%clk
0:00:04.8]} 26... Rh8 {[%clk 0:00:27.2]} 0-1

[Event "Late-Titled-Tuesday-Blitz-September-12-2023"]
[Site "Chess.com"]
[Date "2023.09.12"]
[Round "2"]
[White "alexrustemov"]
[Black "gunslinger222"]
[Result "0-1"]
[WhiteElo "2813"]
[BlackElo "2437"]
[TimeControl "180+1"]
[EndTime "14:16:54 PDT"]
[Termination "gunslinger222 won by resignation"]

1. d4 {[%clk 0:02:55.7]} 1... Nf6 {[%clk 0:02:55.1]} 2. c4 {[%clk 0:02:55.3]}
2... g6 {[%clk 0:02:55.3]} 3. Nf3 {[%clk 0:02:55.5]} 3... Bg7 {[%clk 0:02:55.8]}
4. g3 {[%clk 0:02:55.8]} 4... O-O {[%clk 0:02:56.4]} 5. Bg2 {[%clk 0:02:56.1]}
5... d6 {[%clk 0:02:57.2]} 6. Nc3 {[%clk 0:02:56]} 6... c5 {[%clk 0:02:57.9]} 7.
O-O {[%clk 0:02:55.9]} 7... Nc6 {[%clk 0:02:58.1]} 8. dxc5 {[%clk 0:02:55.9]}
8... dxc5 {[%clk 0:02:59]} 9. Bf4 {[%clk 0:02:56.2]} 9... Be6 {[%clk 0:02:44.4]}
10. Ne5 {[%clk 0:02:55.8]} 10... Nxe5 {[%clk 0:02:21.2]} 11. Bxe5 {[%clk
0:02:56.7]} 11... Nd7 {[%clk 0:02:13.8]} 12. Bxg7 {[%clk 0:02:54]} 12... Kxg7
{[%clk 0:02:14.7]} 13. b3 {[%clk 0:02:31.6]} 13... Rb8 {[%clk 0:02:08.8]} 14.
Qc2 {[%clk 0:02:30.5]} 14... a6 {[%clk 0:01:50.5]} 15. Rfd1 {[%clk 0:02:26.3]}
15... Qc7 {[%clk 0:01:50.4]} 16. Rd2 {[%clk 0:02:10]} 16... b5 {[%clk
0:01:43.9]} 17. Nd5 {[%clk 0:02:06.3]} 17... Bxd5 {[%clk 0:01:41.9]} 18. Rxd5
{[%clk 0:02:01.3]} 18... e6 {[%clk 0:01:38.2]} 19. Rd2 {[%clk 0:02:00.2]} 19...
Qe5 {[%clk 0:01:32.5]} 20. Rad1 {[%clk 0:01:54.1]} 20... Nf6 {[%clk 0:01:32.6]}
21. Rd6 {[%clk 0:01:49.5]} 21... bxc4 {[%clk 0:01:28.3]} 22. Qxc4 {[%clk
0:01:45.9]} 22... a5 {[%clk 0:01:20.8]} 23. Rc6 {[%clk 0:01:40.4]} 23... Rfd8
{[%clk 0:01:12.8]} 24. Rxd8 {[%clk 0:01:33.7]} 24... Rxd8 {[%clk 0:01:13.7]} 25.
Bf3 {[%clk 0:01:33.3]} 25... Qa1+ {[%clk 0:00:59.2]} 26. Kg2 {[%clk 0:01:33.5]}
26... Qe1 {[%clk 0:00:59.5]} 27. g4 {[%clk 0:01:14.7]} 27... Rd1 {[%clk
0:00:57]} 28. Kg3 {[%clk 0:01:14.6]} 28... Qg1+ {[%clk 0:00:46.7]} 29. Bg2
{[%clk 0:01:14.4]} 29... Rd4 {[%clk 0:00:46.3]} 30. Rxc5 {[%clk 0:00:54.2]}
30... Rxc4 {[%clk 0:00:42.7]} 31. Rxc4 {[%clk 0:00:55.1]} 31... g5 {[%clk
0:00:40.5]} 32. Ra4 {[%clk 0:00:51.9]} 32... h6 {[%clk 0:00:40.4]} 33. h3 {[%clk
0:00:51.6]} 33... Qe1 {[%clk 0:00:39.3]} 34. e3 {[%clk 0:00:51.3]} 34... Qc3
{[%clk 0:00:37.9]} 35. Kh2 {[%clk 0:00:50.6]} 35... Nd5 {[%clk 0:00:37.4]} 36.
Bxd5 {[%clk 0:00:48.2]} 36... exd5 {[%clk 0:00:38.3]} 37. Kg2 {[%clk 0:00:48.3]}
37... Kf6 {[%clk 0:00:36.7]} 38. a3 {[%clk 0:00:43.2]} 38... Qxb3 {[%clk
0:00:31.9]} 39. Rxa5 {[%clk 0:00:43.2]} 39... Ke5 {[%clk 0:00:32.3]} 40. Ra7
{[%clk 0:00:42.1]} 40... f5 {[%clk 0:00:32.3]} 41. gxf5 {[%clk 0:00:37.5]} 41...
Kxf5 {[%clk 0:00:33.2]} 42. Ra4 {[%clk 0:00:33.4]} 42... Qxa4 {[%clk 0:00:32.7]}
0-1

[Event "Late-Titled-Tuesday-Blitz-September-12-2023"]
[Site "Chess.com"]
[Date "2023.09.12"]
[Round "2"]
[White "WindWhistler11"]
[Black "kai_nov"]
[Result "1-0"]
[WhiteElo "2489"]
[BlackElo "2229"]
[TimeControl "180+1"]
[EndTime "14:16:57 PDT"]
[Termination "WindWhistler11 won on time"]

1. Nf3 {[%clk 0:03:00]} 1... d5 {[%clk 0:02:58.4]} 2. g3 {[%clk 0:03:00.9]} 2...
c6 {[%clk 0:02:57.3]} 3. Bg2 {[%clk 0:03:00.2]} 3... Nf6 {[%clk 0:02:57.5]} 4.
b3 {[%clk 0:02:59.5]} 4... Bg4 {[%clk 0:02:57.6]} 5. Bb2 {[%clk 0:02:59.7]} 5...
Nbd7 {[%clk 0:02:57.9]} 6. h3 {[%clk 0:03:00.1]} 6... Bh5 {[%clk 0:02:57.6]} 7.
c4 {[%clk 0:03:00.1]} 7... e6 {[%clk 0:02:57.4]} 8. O-O {[%clk 0:02:59.2]} 8...
Be7 {[%clk 0:02:57.3]} 9. d3 {[%clk 0:02:59.1]} 9... O-O {[%clk 0:02:57.2]} 10.
Qc2 {[%clk 0:02:59.2]} 10... Re8 {[%clk 0:02:55.2]} 11. Nbd2 {[%clk 0:02:59.3]}
11... Rc8 {[%clk 0:02:54.2]} 12. g4 {[%clk 0:02:54.2]} 12... Bg6 {[%clk
0:02:53.7]} 13. Nh4 {[%clk 0:02:54.7]} 13... e5 {[%clk 0:02:50.5]} 14. e3 {[%clk
0:02:41.7]} 14... Bd6 {[%clk 0:02:34.4]} 15. Nxg6 {[%clk 0:02:25.4]} 15... hxg6
{[%clk 0:02:34.6]} 16. Kh1 {[%clk 0:02:19.4]} 16... Nxg4 {[%clk 0:01:39.4]} 17.
hxg4 {[%clk 0:02:11.1]} 17... Qh4+ {[%clk 0:01:38.7]} 18. Kg1 {[%clk 0:02:09.5]}
18... e4 {[%clk 0:01:37.4]} 19. f4 {[%clk 0:02:02.8]} 19... exf3 {[%clk
0:01:32.7]} 20. Nxf3 {[%clk 0:02:02.7]} 20... Qxg4 {[%clk 0:01:31.8]} 21. Rae1
{[%clk 0:01:48.2]} 21... Bg3 {[%clk 0:01:12.1]} 22. Re2 {[%clk 0:01:44.1]} 22...
Qh5 {[%clk 0:01:04.3]} 23. e4 {[%clk 0:01:41.8]} 23... g5 {[%clk 0:00:58.1]} 24.
Bh1 {[%clk 0:01:31.7]} 24... g4 {[%clk 0:00:54.3]} 25. Nd4 {[%clk 0:01:31]}
25... g6 {[%clk 0:00:35.4]} 26. Rg2 {[%clk 0:01:17.4]} 26... Bd6 {[%clk
0:00:29.9]} 27. Nf5 {[%clk 0:01:10.3]} 27... Bc7 {[%clk 0:00:18]} 28. Ng7 {[%clk
0:01:01.9]} 28... Bb6+ {[%clk 0:00:14.6]} 29. d4 {[%clk 0:00:57.8]} 29... Kxg7
{[%clk 0:00:12.7]} 30. Qc1 {[%clk 0:00:43.5]} 30... Rxe4 {[%clk 0:00:11]} 31.
Rh2 {[%clk 0:00:42.1]} 31... Qxh2+ {[%clk 0:00:01.4]} 32. Kxh2 {[%clk 0:00:43]}
1-0

[Event "Late-Titled-Tuesday-Blitz-September-12-2023"]
[Site "Chess.com"]
[Date "2023.09.12"]
[Round "2"]
[White "VitorBronson"]
[Black "mishanick"]
[Result "0-1"]
[WhiteElo "2563"]
[BlackElo "3064"]
[TimeControl "180+1"]
[EndTime "14:16:58 PDT"]
[Termination "mishanick won on time"]

1. Nf3 {[%clk 0:03:00.9]} 1... d5 {[%clk 0:02:59.8]} 2. g3 {[%clk 0:02:57.1]}
2... g6 {[%clk 0:02:59.9]} 3. Bg2 {[%clk 0:02:57.1]} 3... Bg7 {[%clk 0:03:00.7]}
4. O-O {[%clk 0:02:57.7]} 4... e5 {[%clk 0:03:00.9]} 5. d3 {[%clk 0:02:57.3]}
5... Nc6 {[%clk 0:03:00.9]} 6. e4 {[%clk 0:02:57.1]} 6... Nge7 {[%clk
0:03:00.3]} 7. Re1 {[%clk 0:02:56.1]} 7... O-O {[%clk 0:02:58]} 8. Nc3 {[%clk
0:02:48.4]} 8... dxe4 {[%clk 0:02:56.5]} 9. dxe4 {[%clk 0:02:47]} 9... Bg4
{[%clk 0:02:54.7]} 10. h3 {[%clk 0:02:46.9]} 10... Qxd1 {[%clk 0:02:53.5]} 11.
Rxd1 {[%clk 0:02:26.6]} 11... Bxf3 {[%clk 0:02:53.9]} 12. Bxf3 {[%clk
0:02:26.4]} 12... Nd4 {[%clk 0:02:54.7]} 13. Bg2 {[%clk 0:02:23.8]} 13... Nxc2
{[%clk 0:02:55]} 14. Rb1 {[%clk 0:02:23.3]} 14... Nd4 {[%clk 0:02:55.6]} 15. Bg5
{[%clk 0:02:21.2]} 15... Nec6 {[%clk 0:02:53.3]} 16. Nd5 {[%clk 0:02:21.2]}
16... h6 {[%clk 0:02:51.8]} 17. Be3 {[%clk 0:02:14.1]} 17... Rac8 {[%clk
0:02:45.6]} 18. b4 {[%clk 0:02:14.1]} 18... Rfe8 {[%clk 0:02:41.9]} 19. b5
{[%clk 0:02:11.8]} 19... Na5 {[%clk 0:02:42]} 20. Bf1 {[%clk 0:01:51.7]} 20...
c6 {[%clk 0:02:40.6]} 21. bxc6 {[%clk 0:01:50.2]} 21... bxc6 {[%clk 0:02:41.5]}
22. Nc3 {[%clk 0:01:48.4]} 22... Red8 {[%clk 0:02:38.6]} 23. Kg2 {[%clk
0:01:48]} 23... Rc7 {[%clk 0:02:32.6]} 24. Rdc1 {[%clk 0:01:42]} 24... Rcd7
{[%clk 0:02:28.2]} 25. Na4 {[%clk 0:01:37]} 25... Bf8 {[%clk 0:02:25]} 26. Nc5
{[%clk 0:01:35.1]} 26... Rc7 {[%clk 0:02:24.8]} 27. Bd2 {[%clk 0:01:28.5]} 27...
Bxc5 {[%clk 0:02:13.6]} 28. Bxa5 {[%clk 0:01:24.5]} 28... Bb6 {[%clk 0:02:13.1]}
29. Rxb6 {[%clk 0:01:24.5]} 29... axb6 {[%clk 0:02:12.7]} 30. Bxb6 {[%clk
0:01:24.7]} 30... Rdd7 {[%clk 0:02:08.7]} 31. Bxc7 {[%clk 0:01:24.7]} 31... Rxc7
{[%clk 0:02:09.6]} 32. a4 {[%clk 0:01:22.7]} 32... Ra7 {[%clk 0:02:09.5]} 33.
Rc4 {[%clk 0:01:19]} 33... f6 {[%clk 0:02:06.2]} 34. f4 {[%clk 0:01:10.3]} 34...
Kf7 {[%clk 0:02:06.2]} 35. fxe5 {[%clk 0:01:10.5]} 35... fxe5 {[%clk 0:02:07.1]}
36. Rc5 {[%clk 0:01:09]} 36... Ke6 {[%clk 0:02:07.7]} 37. Rc4 {[%clk 0:01:05]}
37... Kd6 {[%clk 0:02:05.6]} 38. h4 {[%clk 0:01:01.4]} 38... Rb7 {[%clk
0:02:04.7]} 39. Rc1 {[%clk 0:00:50.3]} 39... Rb2+ {[%clk 0:02:04.9]} 40. Kh3
{[%clk 0:00:48.9]} 40... Ra2 {[%clk 0:02:05.4]} 41. Bc4 {[%clk 0:00:44.1]} 41...
Rxa4 {[%clk 0:02:03.2]} 42. Bf7 {[%clk 0:00:44.8]} 42... Ne2 {[%clk 0:01:41.8]}
43. Rd1+ {[%clk 0:00:40]} 43... Rd4 {[%clk 0:01:42]} 44. Re1 {[%clk 0:00:28.4]}
44... Rxe4 {[%clk 0:01:42]} 45. Rd1+ {[%clk 0:00:15.2]} 45... Rd4 {[%clk
0:01:38.1]} 46. Rxd4+ {[%clk 0:00:13]} 46... exd4 {[%clk 0:01:33.3]} 47. Bxg6
{[%clk 0:00:13.9]} 47... c5 {[%clk 0:01:33.9]} 48. Kg2 {[%clk 0:00:12]} 48... c4
{[%clk 0:01:33.8]} 49. Kf2 {[%clk 0:00:12.5]} 49... Nc3 {[%clk 0:01:33.5]} 50.
g4 {[%clk 0:00:11.8]} 50... Ke5 {[%clk 0:01:27.1]} 51. Bf7 {[%clk 0:00:10]}
51... Ne4+ {[%clk 0:01:24.1]} 52. Ke2 {[%clk 0:00:08.1]} 52... c3 {[%clk
0:01:23.7]} 53. Bg6 {[%clk 0:00:06.2]} 53... c2 {[%clk 0:01:23.5]} 0-1

[Event "Late-Titled-Tuesday-Blitz-September-12-2023"]
[Site "Chess.com"]
[Date "2023.09.12"]
[Round "2"]
[White "HamedWafa4"]
[Black "pirulillo"]
[Result "1-0"]
[WhiteElo "2539"]
[BlackElo "2327"]
[TimeControl "180+1"]
[EndTime "14:17:05 PDT"]
[Termination "HamedWafa4 won by checkmate"]

1. e4 {[%clk 0:03:00.9]} 1... c5 {[%clk 0:02:59.3]} 2. Nf3 {[%clk 0:02:57.1]}
2... e6 {[%clk 0:02:59.2]} 3. d4 {[%clk 0:02:56.7]} 3... cxd4 {[%clk 0:03:00.1]}
4. Nxd4 {[%clk 0:02:56.3]} 4... Nf6 {[%clk 0:03:00.9]} 5. Nc3 {[%clk 0:02:56.5]}
5... Nc6 {[%clk 0:03:01.5]} 6. a3 {[%clk 0:02:56]} 6... d6 {[%clk 0:03:00.8]} 7.
Be3 {[%clk 0:02:51.5]} 7... Be7 {[%clk 0:03:00.3]} 8. Qf3 {[%clk 0:02:47.7]}
8... O-O {[%clk 0:02:54.2]} 9. O-O-O {[%clk 0:02:47.2]} 9... Qc7 {[%clk
0:02:52.5]} 10. Ndb5 {[%clk 0:02:43.9]} 10... Qb8 {[%clk 0:02:51.5]} 11. Qg3
{[%clk 0:02:36.2]} 11... Rd8 {[%clk 0:02:37.6]} 12. f4 {[%clk 0:02:29.6]} 12...
a6 {[%clk 0:02:36.5]} 13. Nd4 {[%clk 0:02:29.5]} 13... Nxd4 {[%clk 0:02:34.6]}
14. Bxd4 {[%clk 0:02:29.4]} 14... b5 {[%clk 0:02:34.7]} 15. Bd3 {[%clk
0:02:23.4]} 15... e5 {[%clk 0:01:32.3]} 16. fxe5 {[%clk 0:02:19.1]} 16... Nh5
{[%clk 0:01:32.9]} 17. Qf3 {[%clk 0:02:08.1]} 17... dxe5 {[%clk 0:01:33]} 18.
Nd5 {[%clk 0:01:59.4]} 18... Bf8 {[%clk 0:01:30.4]} 19. Qxh5 {[%clk 0:01:50.4]}
19... exd4 {[%clk 0:01:30.4]} 20. Rhf1 {[%clk 0:01:38.1]} 20... Be6 {[%clk
0:01:23.6]} 21. Rf3 {[%clk 0:01:18.3]} 21... Bxd5 {[%clk 0:01:05.1]} 22. exd5
{[%clk 0:01:16.5]} 22... g6 {[%clk 0:01:05.4]} 23. Qg5 {[%clk 0:01:11.5]} 23...
Qd6 {[%clk 0:00:56.7]} 24. Rdf1 {[%clk 0:01:09.6]} 24... Ra7 {[%clk 0:00:51.9]}
25. Rf5 {[%clk 0:01:02.6]} 25... b4 {[%clk 0:00:41.2]} 26. axb4 {[%clk
0:00:58.7]} 26... Qxb4 {[%clk 0:00:34.1]} 27. Qxd8 {[%clk 0:00:57.2]} 27... Rb7
{[%clk 0:00:31.8]} 28. b3 {[%clk 0:00:50.4]} 28... Rb8 {[%clk 0:00:28.5]} 29.
Qf6 {[%clk 0:00:48.4]} 29... Bh6+ {[%clk 0:00:26.9]} 30. Kb1 {[%clk 0:00:46.6]}
30... Qc3 {[%clk 0:00:20.6]} 31. Qxf7+ {[%clk 0:00:44.8]} 31... Kh8 {[%clk
0:00:21.1]} 32. Qf6+ {[%clk 0:00:44.7]} 32... Bg7 {[%clk 0:00:21.6]} 33. Qc6
{[%clk 0:00:39.3]} 33... Rxb3+ {[%clk 0:00:20.6]} 34. cxb3 {[%clk 0:00:40]}
34... Qxb3+ {[%clk 0:00:20.8]} 35. Kc1 {[%clk 0:00:39.5]} 35... Bh6+ {[%clk
0:00:20.8]} 36. R5f4 {[%clk 0:00:39.8]} 36... Qa3+ {[%clk 0:00:16.7]} 37. Kd2
{[%clk 0:00:38.4]} 37... Qb2+ {[%clk 0:00:17]} 38. Qc2 {[%clk 0:00:37.7]} 38...
Qb4+ {[%clk 0:00:17.6]} 39. Ke2 {[%clk 0:00:38]} 39... Qe7+ {[%clk 0:00:18.3]}
40. Re4 {[%clk 0:00:38.3]} 40... Qg5 {[%clk 0:00:16.6]} 41. Qc8+ {[%clk
0:00:38.1]} 41... Kg7 {[%clk 0:00:14.8]} 42. Qf8# {[%clk 0:00:38.5]} 1-0